[Event "NJSK 2026 Jeugd C"]
[Site "Helmond, Netherlands"]
[Date "2026.04.25"]
[Round "1.6"]
[White "Pathak, Raghav"]
[Black "Nguyen, Paul"]
[Result "1-0"]
[TimeControl "90min/40moves + 30sec/move"]
[WhiteTitle "-"]
[BlackTitle "-"]
[WhiteFideId "1084259"]
[BlackFideId "1095072"]
[WhiteElo "2091"]
[BlackElo "1845"]

1. c4 {[%clk 01:30:57]} {[%emt 00:00:03]} e5 {[%clk 01:30:53]} {[%emt
00:00:07]} 2. Nc3 {[%clk 01:31:22]} {[%emt 00:00:04]} Nc6 {[%clk 01:31:16]}
{[%emt 00:00:08]} 3. g3 {[%clk 01:31:47]} {[%emt 00:00:05]} Nf6 {[%clk
01:31:39]} {[%emt 00:00:07]} 4. Bg2 {[%clk 01:32:13]} {[%emt 00:00:04]} Bc5
{[%clk 01:32:02]} {[%emt 00:00:07]} 5. a3 {[%clk 01:32:24]} {[%emt 00:00:20]}
a6 {[%clk 01:32:03]} {[%emt 00:00:27]} 6. b4 {[%clk 01:32:45]} {[%emt
00:00:09]} Ba7 {[%clk 01:32:24]} {[%emt 00:00:09]} 7. e3 {[%clk 01:32:44]}
{[%emt 00:00:30]} O-O {[%clk 01:32:34]} {[%emt 00:00:21]} 8. Nge2 {[%clk
01:33:11]} {[%emt 00:00:02]} d6 {[%clk 01:32:57]} {[%emt 00:00:08]} 9. Bb2
{[%clk 01:33:30]} {[%emt 00:00:10]} Be6 {[%clk 01:31:39]} {[%emt 00:01:48]} 10.
d3 {[%clk 01:33:44]} {[%emt 00:00:16]} d5 {[%clk 01:30:54]} {[%emt 00:01:15]}
11. d4 {[%clk 01:30:33]} {[%emt 00:03:41]} exd4 {[%clk 01:25:48]} {[%emt
00:05:37]} 12. exd4 {[%clk 01:23:44]} {[%emt 00:07:19]} Qd7 {[%clk 01:24:57]}
{[%emt 00:01:21]} 13. c5 {[%clk 01:22:28]} {[%emt 00:01:46]} Rfe8 {[%clk
01:20:23]} {[%emt 00:05:04]} 14. O-O {[%clk 01:22:50]} {[%emt 00:00:07]} Bh3
{[%clk 01:16:50]} {[%emt 00:04:03]} 15. Nf4 {[%clk 01:22:05]} {[%emt 00:01:15]}
Bxg2 {[%clk 01:17:13]} {[%emt 00:00:07]} 16. Kxg2 {[%clk 01:22:31]} {[%emt
00:00:04]} Qf5 {[%clk 01:13:57]} {[%emt 00:03:46]} 17. h3 {[%clk 01:16:28]}
{[%emt 00:06:33]} Rad8 {[%clk 01:12:12]} {[%emt 00:02:15]} 18. Bc1 {[%clk
01:11:38]} {[%emt 00:05:21]} Ne4 {[%clk 01:00:45]} {[%emt 00:11:56]} 19. Qd3
{[%clk 01:11:49]} {[%emt 00:00:19]} Qf6 {[%clk 01:00:33]} {[%emt 00:00:42]} 20.
Be3 {[%clk 01:05:27]} {[%emt 00:06:52]} Nxc3 {[%clk 00:53:24]} {[%emt
00:07:40]} 21. Qxc3 {[%clk 01:05:50]} {[%emt 00:00:05]} Ne7 {[%clk 00:53:46]}
{[%emt 00:00:09]} 22. Bc1 {[%clk 01:02:53]} {[%emt 00:03:27]} c6 {[%clk
00:49:05]} {[%emt 00:05:11]} 23. Nd3 {[%clk 00:55:23]} {[%emt 00:08:00]} Nf5
{[%clk 00:47:31]} {[%emt 00:02:04]} 24. Ne5 {[%clk 00:54:35]} {[%emt 00:01:18]}
Bb8 {[%clk 00:40:48]} {[%emt 00:07:14]} 25. Bf4 {[%clk 00:52:47]} {[%emt
00:02:18]} Bxe5 {[%clk 00:35:54]} {[%emt 00:05:24]} 26. Bxe5 {[%clk 00:52:21]}
{[%emt 00:00:55]} Qg6 {[%clk 00:35:54]} {[%emt 00:00:29]} 27. Rfe1 {[%clk
00:50:07]} {[%emt 00:02:46]} Re6 {[%clk 00:33:10]} {[%emt 00:03:13]} 28. Kh2
{[%clk 00:50:00]} {[%emt 00:00:37]} Rde8 {[%clk 00:28:22]} {[%emt 00:05:19]} 29.
g4 {[%clk 00:49:38]} {[%emt 00:00:52]} Nh6 {[%clk 00:28:09]} {[%emt 00:00:42]}
30. f4 {[%clk 00:48:00]} {[%emt 00:02:08]} f5 {[%clk 00:23:45]} {[%emt
00:04:54]} 31. g5 {[%clk 00:47:55]} {[%emt 00:00:35]} Nf7 {[%clk 00:24:09]}
{[%emt 00:00:06]} 32. a4 {[%clk 00:46:08]} {[%emt 00:02:18]} Nxe5 {[%clk
00:23:19]} {[%emt 00:01:20]} 33. dxe5 {[%clk 00:46:13]} {[%emt 00:00:25]} h6
{[%clk 00:22:40]} {[%emt 00:01:08]} 34. Rg1 {[%clk 00:46:20]} {[%emt 00:00:23]}
Qh5 {[%clk 00:22:02]} {[%emt 00:01:08]} 35. Ra2 {[%clk 00:46:40]} {[%emt
00:00:11]} Rg6 {[%clk 00:21:41]} {[%emt 00:00:45]} 36. Rag2 {[%clk 00:45:15]}
{[%emt 00:02:00]} hxg5 {[%clk 00:20:49]} {[%emt 00:01:22]} 37. Rxg5 {[%clk
00:45:23]} {[%emt 00:00:22]} Rxg5 {[%clk 00:21:13]} {[%emt 00:00:07]} 38. Rxg5
{[%clk 00:45:45]} {[%emt 00:00:07]} Qe2+ {[%clk 00:21:23]} {[%emt 00:00:20]} 39.
Rg2 {[%clk 00:45:06]} {[%emt 00:01:09]} Qh5 {[%clk 00:20:44]} {[%emt 00:01:09]}
40. Qd3 {[%clk 00:44:47]} {[%emt 00:00:49]} Qh4 {[%clk 00:15:09]} {[%emt
00:06:06]} 41. Qxf5 {[%clk 00:43:49]} {[%emt 00:01:27]} Rf8 {[%clk 00:15:10]}
{[%emt 00:00:29]} 42. Qe6+ {[%clk 00:44:07]} {[%emt 00:00:13]} Kh8 {[%clk
00:15:20]} {[%emt 00:00:19]} 43. Qg4 {[%clk 00:44:27]} {[%emt 00:00:10]} Qxg4
{[%clk 00:13:50]} {[%emt 00:02:00]} 44. Rxg4 {[%clk 00:44:49]} {[%emt
00:00:08]} Kg8 {[%clk 00:13:42]} {[%emt 00:00:38]} 45. Kg3 {[%clk 00:44:51]}
{[%emt 00:00:28]} a5 {[%clk 00:13:52]} {[%emt 00:00:21]} 46. bxa5 {[%clk
00:45:05]} {[%emt 00:00:15]} Ra8 {[%clk 00:14:12]} {[%emt 00:00:09]} 47. f5
{[%clk 00:45:29]} {[%emt 00:00:06]} Kf7 {[%clk 00:13:53]} {[%emt 00:00:50]} 48.
e6+ {[%clk 00:45:28]} {[%emt 00:00:31]} Kf6 {[%clk 00:14:05]} {[%emt 00:00:17]}
49. Kf4 {[%clk 00:45:51]} {[%emt 00:00:07]} d4 {[%clk 00:13:31]} {[%emt
00:01:05]} 50. Rg6+ {[%clk 00:46:15]} {[%emt 00:00:05]} Ke7 {[%clk 00:13:52]}
{[%emt 00:00:09]} 51. Rxg7+ {[%clk 00:46:41]} {[%emt 00:00:04]} Kf8 {[%clk
00:14:14]} {[%emt 00:00:09]} 52. Rxb7 {[%clk 00:46:44]} {[%emt 00:00:27]} d3
{[%clk 00:14:22]} {[%emt 00:00:22]} 53. Rd7 {[%clk 00:47:01]} {[%emt 00:00:13]}
Rxa5 {[%clk 00:14:45]} {[%emt 00:00:07]} 54. Rxd3 {[%clk 00:47:28]} {[%emt
00:00:02]} Rxc5 {[%clk 00:15:03]} {[%emt 00:00:12]} 55. f6 {[%clk 00:47:32]}
{[%emt 00:00:25]} Ke8 {[%clk 00:15:28]} {[%emt 00:00:05]} 56. f7+ {[%clk
00:47:57]} {[%emt 00:00:05]} Ke7 {[%clk 00:15:48]} {[%emt 00:00:10]} 57. Rd8
{[%clk 00:48:12]} {[%emt 00:00:15]} Rc4+ {[%clk 00:15:57]} {[%emt 00:00:22]} 58.
Kf5 {[%clk 00:48:27]} {[%emt 00:00:15]} Rc5+ {[%clk 00:16:08]} {[%emt
00:00:19]} 59. Kg6 {[%clk 00:48:49]} {[%emt 00:00:07]} Kxe6 {[%clk 00:16:30]}
{[%emt 00:00:08]} 60. f8=Q {[%clk 00:49:11]} {[%emt 00:00:08]} 1-0

[Event "NJSK 2026 Jeugd C"]
[Site "Helmond, Netherlands"]
[Date "2026.04.25"]
[Round "1.7"]
[White "Shaikh, Rushaan"]
[Black "Koppenens, Oscar"]
[Result "0-1"]
[TimeControl "90min/40moves + 30sec/move"]
[WhiteTitle "-"]
[BlackTitle "-"]
[WhiteFideId "40113604"]
[BlackFideId "1087940"]
[WhiteElo "1842"]
[BlackElo "2036"]

1. d4 {[%clk 01:30:57]} {[%emt 00:00:02]} d5 {[%clk 01:30:55]} {[%emt
00:00:06]} 2. c4 {[%clk 01:31:22]} {[%emt 00:00:05]} e6 {[%clk 01:31:19]}
{[%emt 00:00:05]} 3. Nc3 {[%clk 01:31:45]} {[%emt 00:00:07]} Nf6 {[%clk
01:31:43]} {[%emt 00:00:06]} 4. Bg5 {[%clk 01:32:09]} {[%emt 00:00:06]} Bb4
{[%clk 01:32:05]} {[%emt 00:00:09]} 5. e3 {[%clk 01:32:06]} {[%emt 00:00:33]}
Nbd7 {[%clk 01:28:56]} {[%emt 00:03:38]} 6. Nf3 {[%clk 01:30:57]} {[%emt
00:01:39]} c5 {[%clk 01:29:21]} {[%emt 00:00:06]} 7. a3 {[%clk 01:29:47]}
{[%emt 00:01:39]} Bxc3+ {[%clk 01:28:19]} {[%emt 00:01:32]} 8. bxc3 {[%clk
01:30:08]} {[%emt 00:00:10]} Qa5 {[%clk 01:28:31]} {[%emt 00:00:18]} 9. Qb3
{[%clk 01:27:59]} {[%emt 00:02:38]} Ne4 {[%clk 01:28:37]} {[%emt 00:00:24]} 10.
Rc1 {[%clk 01:28:09]} {[%emt 00:00:19]} cxd4 {[%clk 01:28:52]} {[%emt
00:00:16]} 11. exd4 {[%clk 01:26:42]} {[%emt 00:01:57]} Nxg5 {[%clk 01:27:28]}
{[%emt 00:01:55]} 12. Nxg5 {[%clk 01:17:59]} {[%emt 00:09:13]} dxc4 {[%clk
01:27:19]} {[%emt 00:00:38]} 13. Bxc4 {[%clk 01:17:53]} {[%emt 00:00:36]} Qxg5
{[%clk 01:27:39]} {[%emt 00:00:10]} 14. O-O {[%clk 01:18:15]} {[%emt 00:00:08]}
O-O {[%clk 01:27:47]} {[%emt 00:00:20]} 15. Rfe1 {[%clk 01:18:07]} {[%emt
00:00:41]} Nb6 {[%clk 01:26:58]} {[%emt 00:01:18]} 16. Bd3 {[%clk 01:17:32]}
{[%emt 00:01:05]} Bd7 {[%clk 01:25:59]} {[%emt 00:01:30]} 17. Qb2 {[%clk
01:15:10]} {[%emt 00:02:50]} Bc6 {[%clk 01:25:10]} {[%emt 00:01:19]} 18. f3
{[%clk 01:14:48]} {[%emt 00:00:52]} Bxf3 {[%clk 01:11:41]} {[%emt 00:14:00]} 19.
Re5 {[%clk 01:15:06]} {[%emt 00:00:12]} f5 {[%clk 01:10:21]} {[%emt 00:01:50]}
20. Rxe6 {[%clk 01:13:26]} {[%emt 00:02:10]} Rae8 {[%clk 01:09:37]} {[%emt
00:01:14]} 21. Rce1 {[%clk 01:12:28]} {[%emt 00:01:28]} Rxe6 {[%clk 01:08:14]}
{[%emt 00:01:54]} 22. Rxe6 {[%emt 00:00:19]} Bd5 {[%clk 01:06:07]} {[%emt
00:02:29]} 23. Re5 {[%clk 01:11:39]} {[%emt 00:01:37]} Nc4 {[%clk 01:00:58]}
{[%emt 00:05:39]} 24. Qe2 {[%clk 01:09:38]} {[%emt 00:02:30]} Nxe5 {[%clk
01:00:46]} {[%emt 00:00:44]} 25. dxe5 {[%clk 01:10:06]} {[%emt 00:00:02]} Qc1+
{[%clk 01:00:44]} {[%emt 00:00:31]} 26. Kf2 {[%clk 01:09:56]} {[%emt 00:00:40]}
Qf4+ {[%clk 01:00:31]} {[%emt 00:00:42]} 27. Kg1 {[%clk 01:10:11]} {[%emt
00:00:16]} Re8 {[%clk 01:00:50]} {[%emt 00:00:12]} 0-1

[Event "NJSK 2026 Jeugd C"]
[Site "Helmond, Netherlands"]
[Date "2026.04.25"]
[Round "1.8"]
[White "Gupta, Akul"]
[Black "Lalkota, Sai Pranav Tejas"]
[Result "1/2-1/2"]
[TimeControl "90min/40moves + 30sec/move"]
[WhiteTitle "-"]
[BlackTitle "-"]
[WhiteFideId "1084194"]
[BlackFideId "1087690"]
[WhiteElo "2017"]
[BlackElo "1830"]

1. d4 {[%clk 01:30:58]} {[%emt 00:00:01]} d5 {[%clk 01:30:53]} {[%emt
00:00:07]} 2. Nc3 {[%clk 01:31:22]} {[%emt 00:00:06]} Nf6 {[%clk 01:31:16]}
{[%emt 00:00:07]} 3. Bf4 {[%clk 01:31:46]} {[%emt 00:00:06]} a6 {[%clk
01:31:27]} {[%emt 00:00:20]} 4. e3 {[%clk 01:32:11]} {[%emt 00:00:04]} Bf5
{[%clk 01:31:38]} {[%emt 00:00:21]} 5. f3 {[%clk 01:32:34]} {[%emt 00:00:07]}
h5 {[%clk 01:31:40]} {[%emt 00:00:26]} 6. Bd3 {[%clk 01:32:58]} {[%emt
00:00:06]} Bxd3 {[%clk 01:28:43]} {[%emt 00:03:28]} 7. Qxd3 {[%clk 01:33:17]}
{[%emt 00:00:11]} Nc6 {[%clk 01:28:54]} {[%emt 00:00:19]} 8. Nge2 {[%clk
01:31:40]} {[%emt 00:02:06]} Nb4 {[%clk 01:24:19]} {[%emt 00:05:05]} 9. Qd2
{[%clk 01:32:03]} {[%emt 00:00:07]} e6 {[%clk 01:24:24]} {[%emt 00:00:26]} 10.
a3 {[%clk 01:32:28]} {[%emt 00:00:05]} Nc6 {[%clk 01:24:35]} {[%emt 00:00:18]}
11. e4 {[%clk 01:31:38]} {[%emt 00:01:19]} dxe4 {[%clk 01:21:59]} {[%emt
00:03:07]} 12. fxe4 {[%clk 01:31:58]} {[%emt 00:00:10]} Qd7 {[%clk 01:21:22]}
{[%emt 00:01:06]} 13. O-O-O {[%clk 01:30:01]} {[%emt 00:02:28]} O-O-O {[%clk
01:21:24]} {[%emt 00:00:29]} 14. Qe3 {[%clk 01:26:13]} {[%emt 00:04:17]} Ng4
{[%clk 01:18:27]} {[%emt 00:03:27]} 15. Qg1 {[%clk 01:26:26]} {[%emt 00:00:17]}
Qe8 {[%clk 01:13:49]} {[%emt 00:05:08]} 16. d5 {[%clk 01:25:22]} {[%emt
00:01:35]} exd5 {[%clk 01:13:55]} {[%emt 00:00:25]} 17. exd5 {[%clk 01:25:45]}
{[%emt 00:00:07]} Nb8 {[%clk 01:13:36]} {[%emt 00:00:48]} 18. Qa7 {[%clk
01:22:15]} {[%emt 00:03:59]} Bd6 {[%clk 01:13:34]} {[%emt 00:00:33]} 19. Rhe1
{[%clk 01:19:59]} {[%emt 00:02:45]} Qe7 {[%clk 01:09:24]} {[%emt 00:04:40]} 20.
Bxd6 {[%clk 01:07:25]} {[%emt 00:13:04]} Qxd6 {[%clk 01:08:34]} {[%emt
00:01:20]} 21. Ne4 {[%clk 01:05:00]} {[%emt 00:02:56]} Qh6+ {[%clk 01:07:52]}
{[%emt 00:01:12]} 22. Kb1 {[%clk 01:02:45]} {[%emt 00:02:45]} Ne3 {[%clk
01:08:06]} {[%emt 00:00:15]} 23. Rd3 {[%clk 01:02:57]} {[%emt 00:00:17]} Nxd5
{[%clk 01:04:10]} {[%emt 00:04:27]} 24. Red1 {[%clk 01:01:44]} {[%emt
00:01:43]} Qb6 {[%clk 01:02:50]} {[%emt 00:01:50]} 25. Qxb6 {[%clk 00:58:54]}
{[%emt 00:03:21]} Nxb6 {[%clk 01:03:12]} {[%emt 00:00:07]} 26. Ng5 {[%clk
00:59:10]} {[%emt 00:00:14]} Rxd3 {[%clk 01:02:41]} {[%emt 00:01:02]} 27. Rxd3
{[%clk 00:59:12]} {[%emt 00:00:28]} f6 {[%clk 01:02:38]} {[%emt 00:00:33]} 28.
Ne6 {[%clk 00:54:07]} {[%emt 00:05:34]} Re8 {[%clk 01:01:33]} {[%emt 00:01:35]}
29. N2d4 {[%clk 00:54:35]} {[%emt 00:00:03]} g5 {[%clk 01:01:47]} {[%emt
00:00:15]} 30. Ng7 {[%clk 00:53:44]} {[%emt 00:01:22]} Re1+ {[%clk 01:02:05]}
{[%emt 00:00:12]} 31. Ka2 {[%clk 00:54:07]} {[%emt 00:00:07]} h4 {[%clk
01:02:12]} {[%emt 00:00:22]} 32. Rf3 {[%clk 00:50:15]} {[%emt 00:04:22]} N8d7
{[%clk 01:02:32]} {[%emt 00:00:10]} 33. Nh5 {[%clk 00:50:29]} {[%emt 00:00:16]}
c5 {[%clk 01:01:58]} {[%emt 00:01:04]} 34. Nb3 {[%clk 00:45:11]} {[%emt
00:05:49]} Re2 {[%clk 01:01:42]} {[%emt 00:00:46]} 35. Nxf6 {[%clk 00:41:27]}
{[%emt 00:04:14]} Rxg2 {[%clk 01:00:46]} {[%emt 00:01:25]} 36. Rf5 {[%clk
00:37:38]} {[%emt 00:04:18]} Rxh2 {[%clk 00:57:40]} {[%emt 00:03:37]} 37. Nxc5
{[%clk 00:35:23]} {[%emt 00:02:46]} Rxc2 {[%clk 00:57:55]} {[%emt 00:00:14]} 38.
Ncxd7 {[%clk 00:35:48]} {[%emt 00:00:06]} Nxd7 {[%clk 00:58:19]} {[%emt
00:00:06]} 39. Nxd7 {[%clk 00:36:14]} {[%emt 00:00:04]} Kxd7 {[%clk 00:58:41]}
{[%emt 00:00:09]} 40. Rxg5 {[%clk 00:36:39]} {[%emt 00:00:04]} h3 {[%clk
00:58:58]} {[%emt 00:00:13]} 41. Rh5 {[%clk 00:36:06]} {[%emt 00:01:02]} Ke6
{[%clk 00:59:19]} {[%emt 00:00:08]} 42. Rxh3 {[%clk 00:36:27]} {[%emt
00:00:11]} Kd6 {[%clk 00:59:35]} {[%emt 00:00:13]} 43. Rh6+ {[%clk 00:35:11]}
{[%emt 00:01:46]} Kc7 {[%clk 00:59:33]} {[%emt 00:00:32]} 44. Rh7+ {[%clk
00:34:44]} {[%emt 00:00:58]} Kb6 {[%clk 00:59:56]} {[%emt 00:00:06]} 45. a4
{[%clk 00:35:05]} {[%emt 00:00:10]} Rf2 {[%clk 01:00:07]} {[%emt 00:00:18]} 46.
Rh5 {[%clk 00:32:36]} {[%emt 00:02:58]} a5 {[%clk 01:00:07]} {[%emt 00:00:31]}
47. Rb5+ {[%clk 00:31:26]} {[%emt 00:01:41]} 1/2-1/2

[Event "NJSK 2026 Jeugd C"]
[Site "Helmond, Netherlands"]
[Date "2026.04.25"]
[Round "1.9"]
[White "Suthan, Aadvik"]
[Black "Sosef, Noah"]
[Result "0-1"]
[TimeControl "90min/40moves + 30sec/move"]
[WhiteTitle "-"]
[BlackTitle "-"]
[WhiteFideId "1095765"]
[BlackFideId "40107060"]
[WhiteElo "1822"]
[BlackElo "2012"]

1. e4 {[%clk 01:30:59]} {[%emt 00:00:01]} c6 {[%clk 01:30:54]} {[%emt
00:00:06]} 2. d4 {[%clk 01:31:14]} {[%emt 00:00:15]} d5 {[%clk 01:31:18]}
{[%emt 00:00:06]} 3. Nc3 {[%clk 01:31:25]} {[%emt 00:00:18]} dxe4 {[%clk
01:31:39]} {[%emt 00:00:10]} 4. Nxe4 {[%clk 01:31:34]} {[%emt 00:00:22]} Nd7
{[%clk 01:31:56]} {[%emt 00:00:11]} 5. Nf3 {[%clk 01:31:25]} {[%emt 00:00:37]}
Ngf6 {[%clk 01:32:12]} {[%emt 00:00:15]} 6. Nxf6+ {[%clk 01:31:29]} {[%emt
00:00:27]} Nxf6 {[%clk 01:32:35]} {[%emt 00:00:08]} 7. Bd3 {[%clk 01:31:26]}
{[%emt 00:00:31]} Bg4 {[%clk 01:32:50]} {[%emt 00:00:17]} 8. c3 {[%clk
01:31:43]} {[%emt 00:00:12]} e6 {[%clk 01:33:02]} {[%emt 00:00:17]} 9. O-O
{[%clk 01:31:00]} {[%emt 00:01:13]} Bd6 {[%clk 01:33:06]} {[%emt 00:00:27]} 10.
Re1 {[%clk 01:31:00]} {[%emt 00:00:29]} Qc7 {[%clk 01:23:27]} {[%emt 00:10:10]}
11. h3 {[%clk 01:26:07]} {[%emt 00:05:21]} Bh5 {[%clk 01:23:37]} {[%emt
00:00:21]} 12. Be2 {[%clk 01:25:17]} {[%emt 00:01:18]} O-O {[%clk 01:20:41]}
{[%emt 00:03:29]} 13. Ne5 {[%clk 01:24:29]} {[%emt 00:01:17]} Bxe5 {[%clk
01:01:09]} {[%emt 00:20:02]} 14. Bxh5 {[%clk 01:22:46]} {[%emt 00:02:13]} Bh2+
{[%clk 00:59:52]} {[%emt 00:01:47]} 15. Kh1 {[%clk 01:22:57]} {[%emt 00:00:18]}
Bf4 {[%clk 00:59:21]} {[%emt 00:01:02]} 16. Bxf4 {[%clk 01:19:34]} {[%emt
00:03:53]} Qxf4 {[%clk 00:59:38]} {[%emt 00:00:13]} 17. Bf3 {[%clk 01:19:48]}
{[%emt 00:00:16]} Rfd8 {[%clk 00:58:28]} {[%emt 00:01:40]} 18. Qe2 {[%clk
01:17:40]} {[%emt 00:02:36]} Rab8 {[%clk 00:55:07]} {[%emt 00:03:54]} 19. Rad1
{[%clk 01:17:16]} {[%emt 00:00:53]} h6 {[%clk 00:54:56]} {[%emt 00:00:41]} 20.
Kg1 {[%clk 01:15:25]} {[%emt 00:02:17]} Nh7 {[%clk 00:42:32]} {[%emt 00:12:58]}
21. Qe3 {[%clk 01:12:45]} {[%emt 00:03:08]} Qxe3 {[%clk 00:40:58]} {[%emt
00:02:08]} 22. fxe3 {[%clk 01:11:43]} {[%emt 00:01:30]} Rd7 {[%clk 00:38:24]}
{[%emt 00:03:04]} 23. Re2 {[%clk 01:05:21]} {[%emt 00:06:44]} Rbd8 {[%clk
00:37:00]} {[%emt 00:02:02]} 24. Red2 {[%clk 00:58:00]} {[%emt 00:07:52]} Nf6
{[%clk 00:23:10]} {[%emt 00:14:19]} 25. Kf2 {[%clk 00:56:26]} {[%emt 00:02:02]}
e5 {[%clk 00:19:47]} {[%emt 00:03:56]} 26. e4 {[%clk 00:55:07]} {[%emt
00:01:45]} Re7 {[%clk 00:18:56]} {[%emt 00:01:24]} 27. Re2 {[%clk 00:55:05]}
{[%emt 00:00:32]} h5 {[%clk 00:16:31]} {[%emt 00:02:55]} 28. g4 {[%clk
00:52:51]} {[%emt 00:02:44]} hxg4 {[%clk 00:15:58]} {[%emt 00:01:03]} 29. hxg4
{[%clk 00:52:36]} {[%emt 00:00:45]} g5 {[%clk 00:15:04]} {[%emt 00:01:24]} 30.
Kg3 {[%clk 00:49:40]} {[%emt 00:03:25]} Kg7 {[%clk 00:13:24]} {[%emt 00:02:10]}
31. a4 {[%clk 00:42:36]} {[%emt 00:07:35]} a5 {[%clk 00:13:07]} {[%emt
00:00:48]} 32. b3 {[%clk 00:42:29]} {[%emt 00:00:33]} Ree8 {[%clk 00:06:02]}
{[%emt 00:07:38]} 33. Red2 {[%clk 00:39:41]} {[%emt 00:03:17]} exd4 {[%clk
00:04:49]} {[%emt 00:01:44]} 34. Rxd4 {[%clk 00:39:41]} {[%emt 00:00:30]} Rxd4
{[%clk 00:04:51]} {[%emt 00:00:28]} 35. Rxd4 {[%clk 00:39:59]} {[%emt
00:00:12]} c5 {[%clk 00:04:30]} {[%emt 00:00:51]} 36. Rc4 {[%clk 00:40:18]}
{[%emt 00:00:11]} Re5 {[%clk 00:04:56]} {[%emt 00:00:04]} 37. b4 {[%clk
00:40:17]} {[%emt 00:00:31]} b6 {[%clk 00:05:15]} {[%emt 00:00:11]} 38. Kf2
{[%clk 00:39:28]} {[%emt 00:01:18]} Ne8 {[%clk 00:05:35]} {[%emt 00:00:11]} 39.
Ke3 {[%clk 00:39:38]} {[%emt 00:00:20]} Nd6 {[%clk 00:05:57]} {[%emt 00:00:08]}
40. Kd3 {[%clk 00:39:58]} {[%emt 00:00:10]} Nxc4 {[%clk 00:06:02]} {[%emt
00:00:25]} 41. Kxc4 {[%clk 00:40:14]} {[%emt 00:00:14]} cxb4 {[%clk 00:06:17]}
{[%emt 00:00:15]} 42. cxb4 {[%clk 00:40:33]} {[%emt 00:00:11]} axb4 {[%clk
00:06:42]} {[%emt 00:00:06]} 43. Kxb4 {[%clk 00:40:47]} {[%emt 00:00:15]} Kf6
{[%clk 00:07:00]} {[%emt 00:00:11]} 44. Kc4 {[%clk 00:40:40]} {[%emt 00:00:37]}
Ra5 {[%clk 00:07:15]} {[%emt 00:00:16]} 45. Bd1 {[%clk 00:40:35]} {[%emt
00:00:36]} Ke5 {[%clk 00:07:34]} {[%emt 00:00:10]} 46. Kd3 {[%clk 00:40:47]}
{[%emt 00:00:17]} Kf4 {[%clk 00:07:34]} {[%emt 00:00:31]} 47. Kd4 {[%clk
00:40:34]} {[%emt 00:00:43]} f6 {[%clk 00:07:47]} {[%emt 00:00:17]} 48. Kd3
{[%clk 00:40:42]} {[%emt 00:00:22]} b5 {[%clk 00:08:04]} {[%emt 00:00:13]} 49.
axb5 {[%clk 00:40:55]} {[%emt 00:00:17]} Rxb5 {[%clk 00:08:27]} {[%emt
00:00:07]} 50. Kd4 {[%clk 00:40:57]} {[%emt 00:00:28]} Rb4+ {[%clk 00:08:48]}
{[%emt 00:00:09]} 51. Kd3 {[%clk 00:40:07]} {[%emt 00:01:19]} Rxe4 {[%clk
00:09:10]} {[%emt 00:00:10]} 52. Kc3 {[%clk 00:40:11]} {[%emt 00:00:25]} Re3+
{[%clk 00:09:33]} {[%emt 00:00:07]} 53. Kd2 {[%clk 00:40:25]} {[%emt 00:00:17]}
Rg3 {[%clk 00:09:55]} {[%emt 00:00:07]} 54. Ke1 {[%clk 00:40:21]} {[%emt
00:00:34]} Rg1+ {[%clk 00:10:16]} {[%emt 00:00:09]} 55. Ke2 {[%clk 00:40:40]}
{[%emt 00:00:11]} Rxd1 {[%clk 00:10:40]} {[%emt 00:00:06]} 56. Kxd1 {[%clk
00:41:00]} {[%emt 00:00:10]} Kxg4 {[%clk 00:11:04]} {[%emt 00:00:07]} 57. Ke2
{[%clk 00:41:17]} {[%emt 00:00:12]} Kg3 {[%clk 00:11:28]} {[%emt 00:00:07]} 58.
Kf1 {[%clk 00:41:36]} {[%emt 00:00:10]} Kh2 {[%clk 00:11:49]} {[%emt 00:00:09]}
59. Kf2 {[%clk 00:41:53]} {[%emt 00:00:13]} g4 {[%clk 00:12:14]} {[%emt
00:00:05]} 60. Ke3 {[%clk 00:42:14]} {[%emt 00:00:09]} g3 {[%clk 00:12:39]}
{[%emt 00:00:06]} 61. Kf4 {[%clk 00:42:27]} {[%emt 00:00:16]} g2 {[%clk
00:13:03]} {[%emt 00:00:05]} 62. Kf5 {[%clk 00:42:35]} {[%emt 00:00:23]} g1=Q
{[%clk 00:13:24]} {[%emt 00:00:08]} 63. Kxf6 {[%clk 00:42:38]} {[%emt
00:00:28]} Qc5 {[%clk 00:13:45]} {[%emt 00:00:09]} 64. Ke6 {[%clk 00:43:02]}
{[%emt 00:00:07]} Kg3 {[%clk 00:14:11]} {[%emt 00:00:04]} 65. Kf6 {[%clk
00:43:17]} {[%emt 00:00:14]} Kf4 {[%clk 00:14:33]} {[%emt 00:00:07]} 66. Kg7
{[%clk 00:43:38]} {[%emt 00:00:10]} Qf5 {[%clk 00:14:47]} {[%emt 00:00:15]} 67.
Kh8 {[%clk 00:43:50]} {[%emt 00:00:17]} Qd7 {[%clk 00:15:13]} {[%emt 00:00:06]}
68. Kg8 {[%clk 00:44:12]} {[%emt 00:00:08]} Kg5 {[%clk 00:15:35]} {[%emt
00:00:08]} 69. Kh8 {[%clk 00:44:33]} {[%emt 00:00:09]} Kg6 {[%clk 00:15:58]}
{[%emt 00:00:07]} 70. Kg8 {[%clk 00:44:55]} {[%emt 00:00:09]} Qg7# {[%clk
00:15:51]} {[%emt 00:00:06]} 0-1